[Event "*** Qualifier 3: Titled Tuesday 3|2 Blitz"]
[Site "Chess.com"]
[Date "2017.04.18"]
[Round "8"]
[White "mwpchess"]
[Black "GulamaliRises"]
[Result "0-1"]
[WhiteElo "2395"]
[BlackElo "2462"]
[TimeControl "180+2"]
[EndTime "14:49:00 PDT"]
[Termination "GulamaliRises won by resignation"]

1. e4 {[%clk 0:03:02]} 1... c5 {[%clk 0:03:00]} 2. Nf3 {[%clk 0:03:02.4]} 2...
d6 {[%clk 0:03:01.5]} 3. d4 {[%clk 0:03:00.6]} 3... cxd4 {[%clk 0:03:03.4]} 4.
Nxd4 {[%clk 0:03:01.3]} 4... Nf6 {[%clk 0:03:04.7]} 5. Nc3 {[%clk 0:03:01.7]}
5... a6 {[%clk 0:03:06]} 6. Be3 {[%clk 0:03:01.1]} 6... e5 {[%clk 0:03:01.8]} 7.
Nb3 {[%clk 0:03:01.4]} 7... Be6 {[%clk 0:03:00.9]} 8. f3 {[%clk 0:03:01.5]} 8...
Be7 {[%clk 0:02:56.2]} 9. Qd2 {[%clk 0:03:01.5]} 9... O-O {[%clk 0:02:57.2]} 10.
O-O-O {[%clk 0:03:01.7]} 10... Nbd7 {[%clk 0:02:58.5]} 11. g4 {[%clk 0:03:00.5]}
11... b5 {[%clk 0:02:57.4]} 12. g5 {[%clk 0:03:00.3]} 12... b4 {[%clk
0:02:58.7]} 13. gxf6 {[%clk 0:02:58]} 13... bxc3 {[%clk 0:02:59.4]} 14. Qxc3
{[%clk 0:02:57.2]} 14... Nxf6 {[%clk 0:03:00.7]} 15. Na5 {[%clk 0:02:57.4]}
15... Rc8 {[%clk 0:02:49.9]} 16. Nc6 {[%clk 0:02:57.4]} 16... Qc7 {[%clk
0:02:51.2]} 17. Nxe7+ {[%clk 0:02:57.8]} 17... Qxe7 {[%clk 0:02:53.1]} 18. Qa5
{[%clk 0:02:55.1]} 18... Rc6 {[%clk 0:02:53.6]} 19. Rg1 {[%clk 0:02:37.8]} 19...
Rfc8 {[%clk 0:02:53.6]} 20. c3 {[%clk 0:02:29]} 20... Ne8 {[%clk 0:02:22.4]} 21.
Rg2 {[%clk 0:02:15]} 21... Kh8 {[%clk 0:01:30.4]} 22. Bd3 {[%clk 0:02:14.7]}
22... Qb7 {[%clk 0:01:24.4]} 23. Rdg1 {[%clk 0:02:03.4]} 23... Bc4 {[%clk
0:00:56.4]} 24. Bxc4 {[%clk 0:02:03.2]} 24... Rxc4 {[%clk 0:00:57.3]} 25. Rd2
{[%clk 0:01:54.1]} 25... Qb5 {[%clk 0:00:55]} 26. Qxb5 {[%clk 0:01:50.7]} 26...
axb5 {[%clk 0:00:56.9]} 27. Kb1 {[%clk 0:01:43.5]} 27... g6 {[%clk 0:00:51]} 28.
a3 {[%clk 0:01:41.4]} 28... Kg7 {[%clk 0:00:50.6]} 29. Rd5 {[%clk 0:01:36.7]}
29... Rb8 {[%clk 0:00:49.3]} 30. h4 {[%clk 0:01:33.6]} 30... Kf6 {[%clk
0:00:37.9]} 31. Kc2 {[%clk 0:01:33.5]} 31... Ke6 {[%clk 0:00:38.9]} 32. Rgd1
{[%clk 0:01:21.3]} 32... f5 {[%clk 0:00:39.2]} 33. exf5+ {[%clk 0:01:18.2]}
33... gxf5 {[%clk 0:00:40.1]} 34. Bg5 {[%clk 0:01:13.7]} 34... f4 {[%clk
0:00:28.3]} 35. Kb3 {[%clk 0:01:10.2]} 35... Rc6 {[%clk 0:00:28.1]} 36. Kb4
{[%clk 0:01:07.3]} 36... Nc7 {[%clk 0:00:28.9]} 37. R5d2 {[%clk 0:01:05.7]}
37... d5 {[%clk 0:00:27]} 38. Re2 {[%clk 0:00:55.2]} 38... Kf5 {[%clk
0:00:27.7]} 39. Rde1 {[%clk 0:00:55]} 39... Rc4+ {[%clk 0:00:25.4]} 40. Kb3
{[%clk 0:00:55.2]} 40... e4 {[%clk 0:00:26.8]} 41. Be7 {[%clk 0:00:40.9]} 41...
Ne6 {[%clk 0:00:17.9]} 42. Rg1 {[%clk 0:00:37.9]} 42... Rb7 {[%clk 0:00:18.4]}
43. Bd6 {[%clk 0:00:37.8]} 43... e3 {[%clk 0:00:16.6]} 44. Reg2 {[%clk
0:00:33.3]} 44... Rd7 {[%clk 0:00:16.3]} 45. Bb4 {[%clk 0:00:31.8]} 45... d4
{[%clk 0:00:17.6]} 46. cxd4 {[%clk 0:00:22.7]} 46... Nxd4+ {[%clk 0:00:18.5]}
47. Ka2 {[%clk 0:00:23.6]} 47... Nxf3 {[%clk 0:00:20.3]} 48. Rf1 {[%clk
0:00:23.6]} 48... Nxh4 {[%clk 0:00:21.5]} 49. Rh2 {[%clk 0:00:23.6]} 49... Ng6
{[%clk 0:00:22.1]} 50. Bc3 {[%clk 0:00:21.6]} 50... Ke4 {[%clk 0:00:20.4]} 51.
Rh3 {[%clk 0:00:20]} 51... e2 {[%clk 0:00:17]} 52. Rf2 {[%clk 0:00:20.1]} 52...
Rxc3 {[%clk 0:00:15]} 53. Rxe2+ {[%clk 0:00:20.2]} 53... Re3 {[%clk 0:00:16.5]}
54. Reh2 {[%clk 0:00:13.4]} 54... Rxh3 {[%clk 0:00:16.1]} 55. Rxh3 {[%clk
0:00:14.7]} 55... Rd2 {[%clk 0:00:17]} 56. Kb3 {[%clk 0:00:16.2]} 56... f3
{[%clk 0:00:18.1]} 57. Kb4 {[%clk 0:00:16.9]} 57... Rxb2+ {[%clk 0:00:18.5]} 58.
Kc5 {[%clk 0:00:17.2]} 58... f2 {[%clk 0:00:19.3]} 59. Rh1 {[%clk 0:00:17.8]}
59... Ne5 {[%clk 0:00:19.1]} 60. Kb6 {[%clk 0:00:17.4]} 60... Nc4+ {[%clk
0:00:19.6]} 61. Kc5 {[%clk 0:00:17.7]} 61... Nxa3 {[%clk 0:00:21]} 62. Rh4+
{[%clk 0:00:17.8]} 62... Kf3 {[%clk 0:00:22]} 0-1

[Event "*** Qualifier 3: Titled Tuesday 3|2 Blitz"]
[Site "Chess.com"]
[Date "2017.04.18"]
[Round "8"]
[White "prochn"]
[Black "PowerThinking2650"]
[Result "1-0"]
[WhiteElo "2191"]
[BlackElo "2230"]
[TimeControl "180+2"]
[EndTime "14:49:19 PDT"]
[Termination "prochn won by resignation"]

1. d4 {[%clk 0:03:02]} 1... Nf6 {[%clk 0:02:16.2]} 2. c4 {[%clk 0:03:02.4]} 2...
g6 {[%clk 0:02:17.2]} 3. g3 {[%clk 0:03:03.2]} 3... Bg7 {[%clk 0:02:19.1]} 4.
Bg2 {[%clk 0:03:04.6]} 4... O-O {[%clk 0:02:20.7]} 5. Nf3 {[%clk 0:03:05.4]}
5... d6 {[%clk 0:02:22.6]} 6. O-O {[%clk 0:03:05.9]} 6... Nbd7 {[%clk
0:02:24.5]} 7. Nc3 {[%clk 0:03:06.9]} 7... e5 {[%clk 0:02:25.6]} 8. e4 {[%clk
0:03:08.1]} 8... exd4 {[%clk 0:02:26.6]} 9. Nxd4 {[%clk 0:03:09.2]} 9... Re8
{[%clk 0:02:28.3]} 10. Re1 {[%clk 0:03:09.8]} 10... Nc5 {[%clk 0:02:29.9]} 11.
h3 {[%clk 0:03:09]} 11... a5 {[%clk 0:02:31.1]} 12. Be3 {[%clk 0:02:53.4]} 12...
Ncxe4 {[%clk 0:02:25.1]} 13. Nxe4 {[%clk 0:02:53.6]} 13... Nxe4 {[%clk
0:02:26.1]} 14. Qc2 {[%clk 0:02:49.9]} 14... Nxg3 {[%clk 0:02:12.1]} 15. Nb5
{[%clk 0:02:11.7]} 15... Bf5 {[%clk 0:01:56.2]} 16. Qb3 {[%clk 0:01:59.5]} 16...
a4 {[%clk 0:01:50.9]} 17. Qa3 {[%clk 0:01:56.4]} 17... Ne4 {[%clk 0:01:48.8]}
18. Rad1 {[%clk 0:01:55.4]} 18... Bd7 {[%clk 0:01:17.5]} 19. Bd4 {[%clk
0:01:44.3]} 19... Bxd4 {[%clk 0:01:16]} 20. Nxd4 {[%clk 0:01:43.2]} 20... Nc5
{[%clk 0:01:11.1]} 21. Qg3 {[%clk 0:01:24.8]} 21... Qf6 {[%clk 0:01:07.1]} 22.
Nb5 {[%clk 0:01:12.5]} 22... Bxb5 {[%clk 0:01:05.3]} 23. cxb5 {[%clk 0:01:13.6]}
23... h5 {[%clk 0:01:03.1]} 24. b4 {[%clk 0:01:09]} 24... axb3 {[%clk
0:01:03.3]} 25. axb3 {[%clk 0:01:10.3]} 25... Rxe1+ {[%clk 0:01:02.9]} 26. Rxe1
{[%clk 0:01:11.9]} 26... Ra1 {[%clk 0:01:03.9]} 27. Qe3 {[%clk 0:00:55.1]} 27...
Rxe1+ {[%clk 0:01:02.8]} 28. Qxe1 {[%clk 0:00:57]} 28... Qe5 {[%clk 0:00:58.9]}
29. Qd1 {[%clk 0:00:39.3]} 29... b6 {[%clk 0:00:58.9]} 30. b4 {[%clk 0:00:38.4]}
30... Ne6 {[%clk 0:00:59.8]} 31. Qf3 {[%clk 0:00:36.5]} 31... Nf4 {[%clk
0:00:53.5]} 32. Bf1 {[%clk 0:00:36.2]} 32... g5 {[%clk 0:00:50.2]} 33. Qc6
{[%clk 0:00:33.2]} 33... d5 {[%clk 0:00:44.9]} 34. Qh6 {[%clk 0:00:30.6]} 34...
d4 {[%clk 0:00:22.8]} 35. Qc6 {[%clk 0:00:18.3]} 35... d3 {[%clk 0:00:21.6]} 36.
Qc1 {[%clk 0:00:19.2]} 36... Kg7 {[%clk 0:00:19]} 37. Qd2 {[%clk 0:00:17]} 37...
Qe4 {[%clk 0:00:18.2]} 38. Qc3+ {[%clk 0:00:17.6]} 38... Kg6 {[%clk 0:00:17.6]}
39. Qxc7 {[%clk 0:00:17.3]} 39... d2 {[%clk 0:00:16.9]} 40. Qd6+ {[%clk
0:00:17.9]} 40... f6 {[%clk 0:00:16.2]} 41. Qxd2 {[%clk 0:00:18.9]} 41... g4
{[%clk 0:00:15.6]} 42. hxg4 {[%clk 0:00:18.4]} 42... hxg4 {[%clk 0:00:15.9]} 43.
Qd6 {[%clk 0:00:15.9]} 43... Kg5 {[%clk 0:00:15.5]} 44. Qxb6 {[%clk 0:00:16.2]}
44... f5 {[%clk 0:00:13.3]} 45. Qd8+ {[%clk 0:00:16.6]} 45... Kh5 {[%clk
0:00:14.2]} 46. b6 {[%clk 0:00:16.8]} 46... g3 {[%clk 0:00:12.3]} 47. Qh8+
{[%clk 0:00:16]} 47... Kg5 {[%clk 0:00:12.2]} 48. Qg8+ {[%clk 0:00:16.9]} 48...
Ng6 {[%clk 0:00:13.5]} 49. Qd8+ {[%clk 0:00:17.8]} 49... Kg4 {[%clk 0:00:13.8]}
50. f3+ {[%clk 0:00:14.9]} 50... Qxf3 {[%clk 0:00:13.2]} 51. Qd4+ {[%clk
0:00:11]} 51... f4 {[%clk 0:00:11.8]} 52. Qd7+ {[%clk 0:00:08.5]} 52... Kg5
{[%clk 0:00:11.9]} 53. Qd8+ {[%clk 0:00:09]} 53... Kh6 {[%clk 0:00:12.4]} 54.
Qd2 {[%clk 0:00:07.9]} 54... Ne5 {[%clk 0:00:11.9]} 55. Qd6+ {[%clk 0:00:06.3]}
55... Ng6 {[%clk 0:00:12.4]} 56. Qd2 {[%clk 0:00:07]} 56... Qh5 {[%clk
0:00:12.2]} 57. b7 {[%clk 0:00:07.2]} 57... Qg5 {[%clk 0:00:12]} 58. b8=Q {[%clk
0:00:07.5]} 58... f3 {[%clk 0:00:13.9]} 59. Qxg5+ {[%clk 0:00:06.1]} 59... Kxg5
{[%clk 0:00:14.8]} 60. Qxg3+ {[%clk 0:00:07.7]} 60... Kf6 {[%clk 0:00:16.1]} 61.
Qxf3+ {[%clk 0:00:09]} 1-0

[Event "*** Qualifier 3: Titled Tuesday 3|2 Blitz"]
[Site "Chess.com"]
[Date "2017.04.18"]
[Round "8"]
[White "Yaacovn"]
[Black "Keranke"]
[Result "0-1"]
[WhiteElo "2607"]
[BlackElo "2650"]
[TimeControl "180+2"]
[EndTime "14:49:54 PDT"]
[Termination "Keranke won by resignation"]

1. d4 {[%clk 0:03:01.9]} 1... Nf6 {[%clk 0:03:00.7]} 2. Nf3 {[%clk 0:03:03.1]}
2... g6 {[%clk 0:03:01.7]} 3. e3 {[%clk 0:03:02]} 3... Bg7 {[%clk 0:03:03]} 4.
b3 {[%clk 0:03:03.5]} 4... O-O {[%clk 0:03:02.8]} 5. Bb2 {[%clk 0:03:05.4]} 5...
d6 {[%clk 0:03:03.4]} 6. Be2 {[%clk 0:03:06.8]} 6... Nbd7 {[%clk 0:03:02.8]} 7.
O-O {[%clk 0:03:08]} 7... Qe8 {[%clk 0:03:01.1]} 8. c4 {[%clk 0:03:07.4]} 8...
e5 {[%clk 0:02:59.4]} 9. dxe5 {[%clk 0:03:08.6]} 9... dxe5 {[%clk 0:03:00.8]}
10. Nc3 {[%clk 0:03:09]} 10... Qe7 {[%clk 0:02:50.4]} 11. Nb5 {[%clk 0:03:06.9]}
11... Rd8 {[%clk 0:02:32.9]} 12. Ba3 {[%clk 0:02:55.6]} 12... c5 {[%clk
0:02:25.1]} 13. Qd6 {[%clk 0:02:48.7]} 13... Qxd6 {[%clk 0:02:01.5]} 14. Nxd6
{[%clk 0:02:50.6]} 14... Ne8 {[%clk 0:02:03]} 15. Rad1 {[%clk 0:02:43.9]} 15...
Nxd6 {[%clk 0:01:43.7]} 16. Rxd6 {[%clk 0:02:44.5]} 16... Re8 {[%clk 0:01:40]}
17. Rfd1 {[%clk 0:02:22.8]} 17... e4 {[%clk 0:01:25.1]} 18. Ng5 {[%clk
0:02:21.7]} 18... h6 {[%clk 0:01:17.1]} 19. Nh3 {[%clk 0:02:17.8]} 19... Nb6
{[%clk 0:01:02.4]} 20. Bxc5 {[%clk 0:02:09.1]} 20... Bf8 {[%clk 0:01:03]} 21.
Rd8 {[%clk 0:02:02.8]} 21... Bxh3 {[%clk 0:01:03.8]} 22. Rxa8 {[%clk 0:01:56.7]}
22... Rxa8 {[%clk 0:01:00.3]} 23. Bxf8 {[%clk 0:01:57.2]} 23... Kxf8 {[%clk
0:00:46.9]} 24. gxh3 {[%clk 0:01:57.7]} 24... Ke7 {[%clk 0:00:48.2]} 25. f3
{[%clk 0:01:52.5]} 25... Nd7 {[%clk 0:00:45.7]} 26. fxe4 {[%clk 0:01:43.8]}
26... Ne5 {[%clk 0:00:45.2]} 27. Kf2 {[%clk 0:01:41.3]} 27... Rc8 {[%clk
0:00:45.9]} 28. Rd5 {[%clk 0:01:40.1]} 28... f6 {[%clk 0:00:44.6]} 29. h4 {[%clk
0:01:40.7]} 29... b6 {[%clk 0:00:39.5]} 30. Ke1 {[%clk 0:01:39.3]} 30... Rc5
{[%clk 0:00:33.6]} 31. Kd2 {[%clk 0:01:36.6]} 31... Nc6 {[%clk 0:00:32]} 32. Kc3
{[%clk 0:01:33.6]} 32... a5 {[%clk 0:00:27.6]} 33. a3 {[%clk 0:01:34.3]} 33...
Ne5 {[%clk 0:00:23.7]} 34. b4 {[%clk 0:01:01.1]} 34... axb4+ {[%clk 0:00:25.6]}
35. axb4 {[%clk 0:01:02.2]} 35... Rc7 {[%clk 0:00:26.6]} 36. Kb3 {[%clk
0:00:58.1]} 36... Ra7 {[%clk 0:00:23.2]} 37. Kb2 {[%clk 0:00:52.2]} 37... Rc7
{[%clk 0:00:20.2]} 38. Kb3 {[%clk 0:00:49.2]} 38... Ra7 {[%clk 0:00:20.9]} 39.
Rd1 {[%clk 0:00:50.2]} 39... Ra8 {[%clk 0:00:18.9]} 40. Rc1 {[%clk 0:00:46.7]}
40... Kd7 {[%clk 0:00:18.3]} 41. Rd1+ {[%clk 0:00:39.3]} 41... Ke7 {[%clk
0:00:17.7]} 42. Rg1 {[%clk 0:00:40.2]} 42... Rd8 {[%clk 0:00:17.6]} 43. Re1
{[%clk 0:00:15.7]} 43... Rd2 {[%clk 0:00:14.9]} 44. Kc3 {[%clk 0:00:16.4]} 44...
Ra2 {[%clk 0:00:16]} 45. c5 {[%clk 0:00:15.2]} 45... bxc5 {[%clk 0:00:14.4]} 46.
bxc5 {[%clk 0:00:17.1]} 46... Kd8 {[%clk 0:00:15]} 47. Bb5 {[%clk 0:00:16.8]}
47... Rxh2 {[%clk 0:00:14]} 48. Ra1 {[%clk 0:00:15.9]} 48... Rxh4 {[%clk
0:00:12.8]} 49. Kd4 {[%clk 0:00:15.5]} 49... Rh2 {[%clk 0:00:13.2]} 50. c6
{[%clk 0:00:13]} 50... Rb2 {[%clk 0:00:10.7]} 51. Kc5 {[%clk 0:00:13.6]} 51...
Ke7 {[%clk 0:00:08.2]} 52. Ra7+ {[%clk 0:00:13.7]} 52... Ke6 {[%clk 0:00:09.7]}
53. c7 {[%clk 0:00:11.4]} 53... Rc2+ {[%clk 0:00:10.1]} 54. Kb6 {[%clk 0:00:12]}
54... Kd6 {[%clk 0:00:08.4]} 55. Rb7 {[%clk 0:00:09.6]} 55... Nd7+ {[%clk
0:00:06.1]} 56. Bxd7 {[%clk 0:00:10.2]} 56... Kxd7 {[%clk 0:00:08]} 57. Ra7
{[%clk 0:00:10.2]} 57... Rc6+ {[%clk 0:00:08.1]} 58. Kb5 {[%clk 0:00:11.5]}
58... Rxc7 {[%clk 0:00:09.5]} 59. Ra6 {[%clk 0:00:13.3]} 59... Ke7 {[%clk
0:00:10.9]} 60. Ra8 {[%clk 0:00:14.2]} 60... Rc3 {[%clk 0:00:10.7]} 61. Rh8
{[%clk 0:00:12.9]} 61... h5 {[%clk 0:00:11.7]} 62. Rg8 {[%clk 0:00:14.2]} 62...
Kf7 {[%clk 0:00:12.5]} 63. Rh8 {[%clk 0:00:14.1]} 63... Rxe3 {[%clk 0:00:13.8]}
64. Kc5 {[%clk 0:00:14.9]} 64... Rxe4 {[%clk 0:00:15]} 65. Kd5 {[%clk
0:00:16.8]} 65... Re5+ {[%clk 0:00:16.1]} 66. Kd6 {[%clk 0:00:17.7]} 66... Kg7
{[%clk 0:00:17.5]} 67. Rb8 {[%clk 0:00:18.4]} 67... Rf5 {[%clk 0:00:18.5]} 68.
Rb6 {[%clk 0:00:19.6]} 68... Kh6 {[%clk 0:00:19.7]} 69. Rb7 {[%clk 0:00:20.6]}
69... h4 {[%clk 0:00:20.8]} 70. Rb4 {[%clk 0:00:21.7]} 70... Kg5 {[%clk
0:00:22.1]} 71. Rb1 {[%clk 0:00:22.7]} 71... Rf3 {[%clk 0:00:23]} 72. Ke6 {[%clk
0:00:24.1]} 72... f5 {[%clk 0:00:23.9]} 73. Rg1+ {[%clk 0:00:25.2]} 73... Rg3
{[%clk 0:00:25.3]} 74. Rh1 {[%clk 0:00:25.1]} 74... Kg4 {[%clk 0:00:26.6]} 75.
Kf6 {[%clk 0:00:26.1]} 75... g5 {[%clk 0:00:28.1]} 76. Re1 {[%clk 0:00:27.3]}
76... h3 {[%clk 0:00:29.3]} 77. Re8 {[%clk 0:00:27.6]} 77... h2 {[%clk
0:00:30.3]} 78. Re2 {[%clk 0:00:27.8]} 78... h1=Q {[%clk 0:00:30.7]} 0-1

[Event "*** Qualifier 3: Titled Tuesday 3|2 Blitz"]
[Site "Chess.com"]
[Date "2017.04.18"]
[Round "8"]
[White "Fandorine"]
[Black "Spartakus1975"]
[Result "0-1"]
[WhiteElo "2682"]
[BlackElo "2590"]
[TimeControl "180+2"]
[EndTime "14:50:09 PDT"]
[Termination "Spartakus1975 won by resignation"]

1. Nf3 {[%clk 0:03:02]} 1... d5 {[%clk 0:03:00.3]} 2. g3 {[%clk 0:03:02.6]} 2...
c6 {[%clk 0:03:01.4]} 3. Bg2 {[%clk 0:03:04.3]} 3... Nf6 {[%clk 0:03:02.5]} 4.
O-O {[%clk 0:03:06]} 4... Bf5 {[%clk 0:03:02.8]} 5. d3 {[%clk 0:03:04.6]} 5...
e6 {[%clk 0:03:03.6]} 6. Qe1 {[%clk 0:02:56.9]} 6... h6 {[%clk 0:03:04.1]} 7.
Nbd2 {[%clk 0:02:57.3]} 7... Be7 {[%clk 0:03:04]} 8. e4 {[%clk 0:02:57.6]} 8...
Bh7 {[%clk 0:03:05.6]} 9. b3 {[%clk 0:02:58.6]} 9... O-O {[%clk 0:03:06.3]} 10.
Bb2 {[%clk 0:02:59.7]} 10... a5 {[%clk 0:03:08]} 11. a3 {[%clk 0:03:00]} 11...
Na6 {[%clk 0:03:09.1]} 12. Kh1 {[%clk 0:03:00.9]} 12... Nc5 {[%clk 0:03:05.6]}
13. Nh4 {[%clk 0:02:48.5]} 13... Qc7 {[%clk 0:02:33.7]} 14. f4 {[%clk 0:02:44]}
14... dxe4 {[%clk 0:02:25.9]} 15. Nxe4 {[%clk 0:02:03.4]} 15... Ncxe4 {[%clk
0:02:00.3]} 16. dxe4 {[%clk 0:02:05.3]} 16... Rad8 {[%clk 0:01:52.8]} 17. f5
{[%clk 0:01:57.2]} 17... exf5 {[%clk 0:01:40.6]} 18. Nxf5 {[%clk 0:01:53.5]}
18... Bxf5 {[%clk 0:01:38.4]} 19. Rxf5 {[%clk 0:01:55.4]} 19... Qd7 {[%clk
0:01:29.9]} 20. Qxa5 {[%clk 0:01:26.4]} 20... Qd2 {[%clk 0:01:28.5]} 21. Qc3
{[%clk 0:01:27.7]} 21... Qxc3 {[%clk 0:01:05.3]} 22. Bxc3 {[%clk 0:01:29.6]}
22... Ng4 {[%clk 0:01:06.6]} 23. Re1 {[%clk 0:00:20.7]} 23... Bg5 {[%clk
0:00:48.3]} 24. h3 {[%clk 0:00:13.7]} 24... Ne3 {[%clk 0:00:43.4]} 25. Rf2
{[%clk 0:00:14.8]} 25... Nd1 {[%clk 0:00:41.3]} 26. Rxd1 {[%clk 0:00:11.8]}
26... Rxd1+ {[%clk 0:00:39.9]} 27. Kh2 {[%clk 0:00:13.4]} 27... Be3 {[%clk
0:00:40.7]} 28. Rf1 {[%clk 0:00:10.9]} 28... Rxf1 {[%clk 0:00:41.1]} 29. Bxf1
{[%clk 0:00:12.2]} 29... Rd8 {[%clk 0:00:41.9]} 30. Bd3 {[%clk 0:00:13.4]} 30...
Bd4 {[%clk 0:00:43]} 31. Bd2 {[%clk 0:00:12]} 31... Be5 {[%clk 0:00:43.6]} 32.
Kg2 {[%clk 0:00:11.4]} 32... f6 {[%clk 0:00:43.7]} 33. a4 {[%clk 0:00:12.8]}
33... c5 {[%clk 0:00:42.9]} 34. Kf3 {[%clk 0:00:11.6]} 34... Kf8 {[%clk
0:00:42.9]} 35. Ba5 {[%clk 0:00:11.9]} 35... Rd7 {[%clk 0:00:41.7]} 36. Be1
{[%clk 0:00:12.3]} 36... g6 {[%clk 0:00:41]} 37. Bf2 {[%clk 0:00:12.1]} 37...
Bd4 {[%clk 0:00:40.1]} 38. Be1 {[%clk 0:00:13.7]} 38... h5 {[%clk 0:00:41]} 39.
Bb5 {[%clk 0:00:09]} 39... Rd6 {[%clk 0:00:34.2]} 40. c3 {[%clk 0:00:06.8]}
40... Be5 {[%clk 0:00:34.2]} 41. Bf2 {[%clk 0:00:08.4]} 41... b6 {[%clk
0:00:25.3]} 42. a5 {[%clk 0:00:09.9]} 42... Kg7 {[%clk 0:00:23.2]} 43. a6 {[%clk
0:00:08.2]} 43... Rd8 {[%clk 0:00:21.4]} 44. Bc6 {[%clk 0:00:06.8]} 44... Bb8
{[%clk 0:00:19.5]} 45. b4 {[%clk 0:00:08.3]} 45... Rd3+ {[%clk 0:00:19]} 46. Ke2
{[%clk 0:00:07.7]} 46... Rxc3 {[%clk 0:00:19.5]} 47. bxc5 {[%clk 0:00:04.8]}
47... bxc5 {[%clk 0:00:20.4]} 48. Kd2 {[%clk 0:00:05.9]} 48... Ra3 {[%clk
0:00:19.6]} 49. Bb7 {[%clk 0:00:06]} 49... Ra2+ {[%clk 0:00:20.1]} 50. Ke1
{[%clk 0:00:07]} 50... c4 {[%clk 0:00:20.6]} 51. Bd4 {[%clk 0:00:07.2]} 51...
Be5 {[%clk 0:00:19.5]} 52. Bxe5 {[%clk 0:00:05.8]} 52... fxe5 {[%clk 0:00:19.5]}
53. Kd1 {[%clk 0:00:07.4]} 53... Kf6 {[%clk 0:00:19.3]} 54. Kc1 {[%clk 0:00:09]}
54... Ke7 {[%clk 0:00:18.3]} 55. Kb1 {[%clk 0:00:10.3]} 55... Ra5 {[%clk
0:00:19.9]} 56. Kc2 {[%clk 0:00:11.9]} 56... Kd6 {[%clk 0:00:21.5]} 57. Kc3
{[%clk 0:00:11]} 57... Kc5 {[%clk 0:00:22.9]} 58. Bc8 {[%clk 0:00:11.8]} 58...
g5 {[%clk 0:00:22.4]} 59. h4 {[%clk 0:00:12.8]} 59... g4 {[%clk 0:00:22.8]} 60.
Bb7 {[%clk 0:00:14.4]} 60... Ra3+ {[%clk 0:00:23.6]} 61. Kc2 {[%clk 0:00:12.9]}
61... Kb4 {[%clk 0:00:25]} 62. Bc8 {[%clk 0:00:13.7]} 62... Ra2+ {[%clk
0:00:24]} 63. Kb1 {[%clk 0:00:14.8]} 63... Ra3 {[%clk 0:00:24.6]} 64. Kc2 {[%clk
0:00:14.4]} 64... c3 {[%clk 0:00:25.2]} 65. Bb7 {[%clk 0:00:15.4]} 65... Kc5
{[%clk 0:00:23.3]} 66. Kd3 {[%clk 0:00:15.9]} 66... Kb6 {[%clk 0:00:22.2]} 67.
Kc2 {[%clk 0:00:17.3]} 67... Ka7 {[%clk 0:00:23.1]} 68. Bc8 {[%clk 0:00:17.3]}
68... Ra4 {[%clk 0:00:22.5]} 69. Kxc3 {[%clk 0:00:16]} 69... Rxe4 {[%clk
0:00:22.9]} 70. Kd3 {[%clk 0:00:17.4]} 70... Ra4 {[%clk 0:00:20.7]} 71. Ke3
{[%clk 0:00:18.7]} 71... Ra3+ {[%clk 0:00:21.6]} 72. Kf2 {[%clk 0:00:20.2]}
72... e4 {[%clk 0:00:22.6]} 73. Bd7 {[%clk 0:00:19.7]} 73... Rf3+ {[%clk
0:00:19.4]} 74. Kg2 {[%clk 0:00:21.2]} 74... e3 {[%clk 0:00:20.6]} 0-1